bitfinex-derivatives/quotes_BTCF0:USTF0_20250918
["timestamp","ask_amount","ask_price","bid_price","bid_amount"]
[1758217178325,0.90405585,117540.0,117530.0,0.46012324]
[1758217178521,0.48170261,117540.0,117530.0,0.47399324]
[1758217178729,1.26598261,117540.0,117530.0,0.47399324]
[1758217182728,0.48170261,117540.0,117530.0,0.47399324]
[1758217182933,1.26586261,117540.0,117530.0,0.47399324]
[1758217187826,1.26586261,117540.0,117530.0,0.03777]
[1758217188139,1.68821585,117540.0,117530.0,0.03777]
[1758217188339,1.68821585,117540.0,117530.0,0.46012324]
[1758217189039,0.84350937,117540.0,117530.0,0.46012324]
[1758217189839,1.12506067,117540.0,117530.0,0.3193213]
[1758217190447,0.05934937,117540.0,117530.0,0.3193213]
[1758217190647,0.82826067,117540.0,117530.0,0.03777]
[1758217190945,0.82826067,117540.0,117530.0,0.3193213]
[1758217191341,0.82726067,117540.0,117530.0,0.3173213]
[1758217191547,0.82926067,117540.0,117530.0,0.3153213]
[1758217192051,0.54770937,117540.0,117530.0,0.3153213]
[1758217192349,0.82926067,117540.0,117530.0,0.3153213]
[1758217193149,0.85972029,117540.0,117530.0,0.3153213]
[1758217193943,1.15624029,117540.0,117530.0,0.3153213]
[1758217195152,0.87468899,117540.0,117530.0,0.3153213]
[1758217195456,1.15624029,117540.0,117530.0,0.3153213]
[1758217195750,1.15620029,117540.0,117530.0,0.3153213]
[1758217195947,1.15616029,117540.0,117530.0,0.3153213]
[1758217197252,1.15616029,117540.0,117530.0,0.3288813]
[1758217198753,0.87460899,117540.0,117530.0,0.3288813]
[1758217198951,1.15616029,117540.0,117530.0,0.3288813]
[1758217200155,0.37236029,117540.0,117530.0,0.3153213]
[1758217200354,1.15608029,117540.0,117530.0,0.3153213]
[1758217200950,0.87452899,117540.0,117530.0,0.3153213]
[1758217201147,1.15608029,117540.0,117530.0,0.3288613]
[1758217203253,1.12562067,117540.0,117530.0,0.3288613]
[1758217205356,1.12546067,117540.0,117530.0,0.3288613]
[1758217206756,1.12546067,117540.0,117530.0,0.3153213]
[1758217208157,0.34190067,117540.0,117530.0,0.3153213]
[1758217208358,0.06034937,117540.0,117530.0,0.3153213]
[1758217208547,1.12538067,117540.0,117530.0,0.3288613]
[1758217208860,0.34190067,117540.0,117530.0,0.3288613]
[1758217209059,0.04739937,117540.0,117530.0,0.88005651]
[1758217209256,0.00204,117540.0,117530.0,1.24508971]
[1758217209460,0.37824,117550.0,117540.0,0.03644]
[1758217209652,0.0002,117560.0,117550.0,0.03644]
[1758217209854,0.78344,117560.0,117550.0,0.8495426]
[1758217210155,1.7928,117570.0,117550.0,0.8495426]
[1758217210459,1.83871173,117570.0,117560.0,0.03644]
[1758217210658,2.62205173,117570.0,117560.0,0.5995426]
[1758217210857,1.83861173,117570.0,117560.0,0.5995426]
[1758217211162,2.59787,117570.0,117560.0,0.5995426]
[1758217211365,2.59787,117570.0,117560.0,0.60795054]
[1758217211661,2.59787,117570.0,117560.0,0.3179913]
[1758217212362,2.8995913,117570.0,117560.0,0.03644]
[1758217212660,2.8995913,117570.0,117560.0,0.3179913]
[1758217212865,2.8955913,117570.0,117560.0,0.3179913]
[1758217213162,2.92274875,117570.0,117560.0,0.3189913]
[1758217214261,2.8983913,117570.0,117560.0,0.3189913]
[1758217215469,2.8983913,117570.0,117560.0,0.0239]
[1758217215765,2.8983913,117570.0,117560.0,0.3054513]
[1758217216368,2.8983913,117570.0,117560.0,0.0239]
[1758217216569,2.8983913,117570.0,117560.0,0.3054513]
[1758217217967,2.1151513,117570.0,117560.0,0.3054513]
[1758217218268,2.8982713,117570.0,117560.0,0.3189913]
[1758217218470,2.61672,117570.0,117560.0,0.3189913]
[1758217218969,2.8982713,117570.0,117560.0,0.3189913]
[1758217219168,2.61672,117570.0,117560.0,0.3189913]
[1758217219466,2.61668,117570.0,117560.0,0.3189913]
[1758217220368,2.61664,117570.0,117560.0,0.3189913]
[1758217221169,1.8336,117570.0,117560.0,0.3189913]
[1758217221468,2.61664,117570.0,117560.0,0.3189913]
[1758217222071,2.60347,117570.0,117560.0,0.3189913]
[1758217222369,2.60343,117570.0,117560.0,0.3189913]
[1758217223670,2.60343,117570.0,117560.0,0.03744]
[1758217223869,2.6166,117570.0,117560.0,0.0239]
[1758217224372,2.8981513,117570.0,117560.0,0.3054513]
[1758217224665,2.8981513,117570.0,117560.0,0.0239]
[1758217224869,2.8981513,117570.0,117560.0,0.3054513]
[1758217226070,2.6166,117570.0,117560.0,0.3054513]
[1758217226262,2.8981513,117570.0,117560.0,0.3054513]
[1758217227665,3.45381525,117570.0,117560.0,0.001]
[1758217227874,0.01317,117560.0,117550.0,0.0002]
[1758217228167,0.035,117550.0,117540.0,0.0002]
[1758217228366,0.035,117540.0,117530.0,0.02970333]
[1758217228568,0.3165513,117540.0,117530.0,0.02950333]
[1758217228768,1.0993513,117540.0,117530.0,0.05240333]
[1758217229072,0.035,117540.0,117530.0,0.33395463]
[1758217229263,0.035,117540.0,117530.0,0.34749463]
[1758217229468,0.45439,117540.0,117530.0,0.34749463]
[1758217229670,0.02283,117540.0,117530.0,0.34749463]
[1758217229862,0.02283,117540.0,117530.0,0.3276913]
[1758217230067,0.80563,117540.0,117530.0,0.3276913]
[1758217230868,0.02383,117540.0,117530.0,0.5786913]
[1758217231266,0.67727,117540.0,117530.0,0.5786913]
[1758217231467,0.80663,117540.0,117530.0,0.5786913]
[1758217231675,0.02383,117540.0,117530.0,0.5786913]
[1758217231972,0.80663,117540.0,117530.0,0.29714]
[1758217232278,0.80663,117540.0,117530.0,0.5786913]
[1758217234372,0.02383,117540.0,117530.0,0.5786913]
[1758217234572,0.80663,117540.0,117530.0,0.5786913]
[1758217238679,0.80663,117540.0,117530.0,0.29714]
[1758217238979,0.81998,117540.0,117530.0,0.5651513]
[1758217239377,1.1015313,117540.0,117530.0,0.3284913]
[1758217239676,0.81998,117540.0,117530.0,0.3284913]
[1758217241379,0.81986,117540.0,117530.0,0.3284913]
[1758217243082,1.1014113,117540.0,117530.0,0.3284913]
[1758217243578,0.02383,117540.0,117530.0,0.3284913]
[1758217243778,0.45035,117540.0,117530.0,0.3284913]
[1758217244881,0.02383,117540.0,117530.0,0.3284913]
[1758217245087,0.80647,117540.0,117530.0,0.3284913]
[1758217245283,0.02383,117540.0,117530.0,0.3284913]
[1758217245474,0.80647,117540.0,117530.0,0.3284913]
[1758217246785,0.02383,117540.0,117530.0,0.3284913]
[1758217246980,0.80643,117540.0,117530.0,0.3284913]
[1758217248079,0.81978,117540.0,117530.0,0.3284913]
[1758217251789,1.24205176,117540.0,117530.0,0.46921176]
[1758217253375,1.22870176,117540.0,117530.0,0.46921176]
[1758217253585,1.22858176,117540.0,117530.0,0.46921176]
[1758217256189,0.02383,117540.0,117530.0,0.46921176]
[1758217256387,1.22854176,117540.0,117530.0,0.46921176]
[1758217257087,0.80627,117540.0,117530.0,0.46921176]
[1758217258291,1.22854176,117540.0,117530.0,0.46921176]
[1758217260193,0.02383,117540.0,117530.0,0.46921176]
[1758217260398,0.80623,117540.0,117530.0,0.89148352]
[1758217260593,0.02383,117540.0,117530.0,0.89148352]
[1758217260793,0.002,117540.0,117530.0,1.64878848]
[1758217261090,0.002,117540.0,117530.0,1.85375528]
[1758217261294,0.002,117540.0,117530.0,1.43148352]
[1758217261594,0.002,117540.0,117530.0,0.29694]
[1758217261892,0.02496,117540.0,117530.0,0.71921176]
[1758217262396,0.88241352,117540.0,117530.0,0.45587176]
[1758217262691,0.88241352,117540.0,117530.0,0.0336]
[1758217263194,0.88241352,117540.0,117530.0,0.45587176]
[1758217264293,0.03787,117540.0,117530.0,0.45587176]
[1758217264499,0.77803,117540.0,117530.0,0.46981176]
[1758217264688,1.20030176,117540.0,117530.0,0.45587176]
[1758217264889,1.62257352,117540.0,117530.0,0.45587176]
[1758217265398,1.62257352,117540.0,117530.0,0.0336]
[1758217265597,1.62257352,117540.0,117530.0,0.45587176]
[1758217265996,1.20030176,117540.0,117530.0,0.45587176]
[1758217266395,1.87257352,117540.0,117530.0,0.0107]
[1758217268897,1.13241352,117540.0,117530.0,0.0107]
[1758217269090,1.93887829,117540.0,117530.0,0.03232]
[1758217269290,1.93887829,117540.0,117530.0,0.0107]
[1758217270296,2.36115005,117540.0,117530.0,0.0107]
[1758217270893,1.57891005,117540.0,117530.0,0.0107]
[1758217271093,2.36115005,117540.0,117530.0,0.0107]
[1758217273397,2.43087166,117540.0,117530.0,0.0107]
[1758217273597,1.64863166,117540.0,117530.0,0.0107]
[1758217273797,2.43087166,117540.0,117530.0,0.0107]
[1758217279501,1.64863166,117540.0,117530.0,0.0107]
[1758217279701,2.43087166,117540.0,117530.0,0.0107]
[1758217279903,1.64863166,117540.0,117530.0,0.0107]
[1758217280103,2.43087166,117540.0,117530.0,0.0107]
[1758217282004,1.64863166,117540.0,117530.0,0.0107]
[1758217282201,2.43083166,117540.0,117530.0,0.0107]
[1758217282399,2.43087166,117540.0,117530.0,0.0107]
[1758217282701,2.43083166,117540.0,117530.0,0.0107]
[1758217283103,2.46129128,117540.0,117530.0,0.0107]
[1758217283694,1.67909128,117540.0,117530.0,0.0107]
[1758217284304,2.46129128,117540.0,117530.0,0.0107]
[1758217286006,1.67909128,117540.0,117530.0,0.0107]
[1758217286500,2.46129128,117540.0,117530.0,0.0107]
[1758217286999,1.67909128,117540.0,117530.0,0.0107]
[1758217287196,0.412276,117540.0,117530.0,0.0107]
[1758217287398,2.46129128,117540.0,117530.0,0.0107]
[1758217287599,2.03901952,117540.0,117530.0,0.0107]
[1758217289510,2.46129128,117540.0,117530.0,0.0107]
[1758217289712,1.67909128,117540.0,117530.0,0.0107]
[1758217290310,2.46125128,117540.0,117530.0,0.0107]
[1758217290611,1.67909128,117540.0,117530.0,0.0107]
[1758217290812,2.46125128,117540.0,117530.0,0.0107]
[1758217291413,2.03893952,117540.0,117530.0,0.0107]
[1758217293115,2.0084799,117540.0,117530.0,0.0107]
[1758217293614,2.43075166,117540.0,117530.0,0.0107]
[1758217295413,2.46121128,117540.0,117530.0,0.0107]
[1758217299316,2.21121128,117540.0,117530.0,0.0107]
[1758217300215,2.25690071,117540.0,117530.0,0.0107]
[1758217301613,0.98996543,117540.0,117530.0,0.0107]
[1758217301818,1.83450895,117540.0,117530.0,0.0107]
[1758217302719,1.83350895,117540.0,117530.0,0.0097]
[1758217302911,1.83450895,117540.0,117530.0,0.0107]
[1758217303718,1.83350895,117540.0,117530.0,0.0107]
[1758217303919,1.83450895,117540.0,117530.0,0.0107]
[1758217304921,1.78881952,117540.0,117530.0,0.0107]
[1758217306424,2.21109128,117540.0,117530.0,0.0107]
[1758217310030,2.25678071,117540.0,117530.0,0.0107]
[1758217312329,2.22632109,117540.0,117530.0,0.0107]
[1758217313130,1.47489156,117540.0,117530.0,0.0107]
[1758217313624,2.25681156,117540.0,117530.0,0.0107]
[1758217313826,1.83496752,117540.0,117530.0,0.0107]
[1758217314326,1.05304752,117540.0,117530.0,0.0107]
[1758217314721,1.83496752,117540.0,117530.0,0.0107]
[1758217314927,0.77139044,117540.0,117530.0,0.0107]
[1758217315126,0.72570101,117540.0,117530.0,0.0107]
[1758217315330,1.50762101,117540.0,117530.0,0.0107]
[1758217316436,0.72570101,117540.0,117530.0,0.0107]
[1758217316931,1.50762101,117540.0,117530.0,0.0107]
[1758217317528,0.94430685,117540.0,117530.0,0.0107]
[1758217317723,1.50762101,117540.0,117530.0,0.0107]
[1758217318835,0.72570101,117540.0,117530.0,0.0107]
[1758217319036,1.50762101,117540.0,117530.0,0.03236]
[1758217319424,1.50762101,117540.0,117530.0,0.0107]
[1758217323136,1.52273997,117540.0,117530.0,0.0107]
[1758217325228,0.95938581,117540.0,117530.0,0.03287]
[1758217325428,1.52269997,117540.0,117530.0,0.03287]
[1758217325633,1.52269997,117540.0,117530.0,0.0107]
[1758217326739,1.52269997,117540.0,117530.0,0.03287]
[1758217326943,0.74081997,117540.0,117530.0,0.03287]
[1758217327235,1.22591646,117540.0,117530.0,0.56452708]
[1758217327436,0.92003461,117540.0,117530.0,0.28287]
[1758217327637,1.22608186,117540.0,117530.0,0.28287]
[1758217328341,1.47717594,117540.0,117530.0,0.28287]
[1758217331942,0.69529594,117540.0,117530.0,0.28287]
[1758217332146,1.47717594,117540.0,117530.0,0.28287]
[1758217335043,1.47709098,117540.0,117530.0,0.28287]
[1758217336444,1.75874806,117540.0,117530.0,0.0107]
[1758217336647,2.05443749,117540.0,117520.0,0.0002]
[1758217336948,2.05443749,117540.0,117510.0,0.0001]
[1758217336949,0.03416,117520.0,117510.0,0.0001]
[1758217337259,0.03416,117510.0,117500.0,0.02227]
[1758217337546,0.34012229,117510.0,117500.0,0.02217]
[1758217338550,0.34012229,117510.0,117500.0,0.02417]
[1758217338856,0.05846521,117510.0,117500.0,0.02417]
[1758217339048,0.34112229,117510.0,117500.0,0.02417]
[1758217340545,0.34112229,117510.0,117500.0,0.30582708]
[1758217340751,1.12300229,117510.0,117500.0,0.02417]
[1758217341050,1.12300229,117510.0,117500.0,0.30582708]
[1758217341750,1.12300229,117510.0,117500.0,0.02417]
[1758217342150,1.12300229,117510.0,117500.0,0.30582708]
[1758217343252,1.09869708,117510.0,117500.0,0.30582708]
[1758217343844,0.03516,117510.0,117500.0,0.30582708]
[1758217344152,0.74845708,117510.0,117500.0,0.31934708]
[1758217345353,0.74845708,117510.0,117500.0,0.03769]
[1758217345552,0.74845708,117510.0,117500.0,0.31934708]
[1758217346355,0.4668,117510.0,117500.0,0.31934708]
[1758217346563,0.74845708,117510.0,117500.0,0.31934708]
[1758217346957,0.31681708,117510.0,117500.0,0.31934708]
[1758217347154,1.09873708,117510.0,117500.0,0.31934708]
[1758217347457,0.81708,117510.0,117500.0,0.31934708]
[1758217347758,1.09873708,117510.0,117500.0,0.31934708]
[1758217350561,1.08608708,117510.0,117500.0,0.31934708]
[1758217354856,0.80443,117510.0,117500.0,0.31934708]
[1758217355057,0.02251,117510.0,117500.0,0.60100416]
[1758217355256,0.41756,117510.0,117500.0,0.85100416]
[1758217355559,0.02418,117510.0,117500.0,0.85100416]
[1758217355864,0.6689,117510.0,117500.0,0.85100416]
[1758217359259,0.69315313,117510.0,117500.0,0.60100416]
[1758217360362,0.69304329,117510.0,117500.0,0.60100416]
[1758217361465,0.69304329,117510.0,117500.0,0.03769]
[1758217361662,0.69304329,117510.0,117500.0,0.60100416]
[1758217363162,0.6689,117510.0,117500.0,0.60100416]
[1758217364365,0.69306261,117510.0,117500.0,0.60100416]
[1758217365163,0.6689,117510.0,117500.0,0.60100416]
[1758217367265,0.001,117510.0,117500.0,0.60100416]
[1758217367464,0.80602,117510.0,117500.0,0.60100416]
[1758217368160,0.80602,117510.0,117500.0,0.03769]
[1758217368364,0.80602,117510.0,117500.0,0.60100416]
[1758217370566,0.80602,117510.0,117500.0,0.03769]
[1758217370766,0.80602,117510.0,117500.0,0.60100416]
[1758217373173,0.83021263,117510.0,117500.0,0.60100416]
[1758217373375,0.83021263,117510.0,117500.0,0.03769]
[1758217373573,0.83021263,117510.0,117500.0,0.60100416]
[1758217373774,0.04837263,117510.0,117500.0,0.88256708]
[1758217373975,0.83017263,117510.0,117500.0,0.88256708]
[1758217376671,0.04837263,117510.0,117500.0,0.88256708]
[1758217376874,0.02519263,117510.0,117500.0,0.88256708]
[1758217378374,0.02519263,117510.0,117500.0,1.40957201]
[1758217378571,0.001,117510.0,117500.0,1.65957201]
[1758217380163,0.001,117510.0,117500.0,1.97957201]
[1758217380368,0.0001,117520.0,117510.0,0.1207577]
[1758217380577,0.32428,117530.0,117520.0,0.03571]
[1758217380780,0.32428,117530.0,117520.0,1.30302562]
[1758217380781,0.34837156,117530.0,117520.0,1.30302562]
[1758217381077,0.34837156,117530.0,117520.0,1.38941828]
[1758217381470,0.32418,117530.0,117520.0,0.96697974]
[1758217382270,0.0001,117530.0,117520.0,1.47445878]
[1758217382474,0.0001,117530.0,117520.0,2.00445878]
[1758217382673,0.0001,117540.0,117530.0,0.1207432]
[1758217382871,0.43608854,117560.0,117530.0,0.1207432]
[1758217382872,0.80506,117550.0,117540.0,0.03571]
[1758217383178,0.80506,117560.0,117550.0,0.03571]
[1758217383375,0.80496,117560.0,117550.0,0.88058708]
[1758217384278,0.02324,117560.0,117550.0,0.88058708]
[1758217385083,0.02324,117560.0,117550.0,0.03571]
[1758217385271,0.02324,117560.0,117550.0,0.88058708]
[1758217385473,0.02724,117560.0,117550.0,0.88058708]
[1758217386280,0.02724,117560.0,117550.0,0.88930375]
[1758217386670,0.80884,117560.0,117550.0,0.88930375]
[1758217387275,0.02724,117560.0,117550.0,0.88930375]
[1758217390784,0.004,117560.0,117550.0,0.88930375]
[1758217391282,0.004,117560.0,117550.0,0.99381664]
[1758217391586,0.02324,117600.0,117590.0,0.03571]
[1758217391778,0.32864,117600.0,117590.0,0.88058708]
[1758217392087,0.57864,117600.0,117590.0,0.88058708]
[1758217392285,1.05472,117600.0,117590.0,0.88058708]
[1758217392782,1.05972,117600.0,117590.0,0.88058708]
[1758217393181,1.08376605,117600.0,117590.0,0.88058708]
[1758217393379,1.08376605,117600.0,117590.0,0.45814854]
[1758217393577,1.08376605,117600.0,117590.0,0.88058708]
[1758217393989,1.08375309,117600.0,117590.0,0.88058708]
[1758217394285,0.83975309,117600.0,117590.0,0.88058708]
[1758217394483,0.83475309,117600.0,117590.0,0.88058708]
[1758217394684,0.83075309,117600.0,117590.0,0.88158708]
[1758217394983,0.83275309,117600.0,117590.0,0.88158708]
[1758217397985,0.83275309,117600.0,117590.0,0.45914854]
[1758217401083,0.83275309,117600.0,117590.0,0.88158708]
[1758217401283,0.83275309,117600.0,117590.0,0.45914854]
[1758217402099,0.83275309,117600.0,117590.0,0.88158708]
[1758217402486,0.83275309,117600.0,117590.0,0.89003474]
[1758217402896,0.83275309,117600.0,117590.0,0.88158708]
[1758217404382,0.83247309,117600.0,117590.0,0.88158708]
[1758217404784,0.83247309,117600.0,117590.0,0.89022309]
[1758217405085,0.83247309,117600.0,117590.0,0.04534601]
[1758217405286,0.83247309,117600.0,117590.0,0.89022309]
[1758217405990,0.83247309,117600.0,117590.0,0.45914854]
[1758217406292,0.86301626,117600.0,117590.0,0.88158708]
[1758217407894,0.86301626,117600.0,117590.0,0.45914854]
[1758217408394,0.90870569,117600.0,117590.0,0.45914854]
[1758217408594,0.86297626,117600.0,117590.0,0.88158708]
[1758217409298,0.90866569,117600.0,117590.0,0.88158708]
[1758217411501,0.87812252,117600.0,117590.0,0.88158708]
[1758217412296,0.09696252,117600.0,117590.0,0.88158708]
[1758217412701,0.87808252,117600.0,117590.0,0.88158708]
[1758217414803,0.87808252,117600.0,117590.0,0.45914854]
[1758217415901,0.09696252,117600.0,117590.0,0.45914854]
[1758217416096,0.87804252,117600.0,117590.0,0.45914854]
[1758217417000,0.87804252,117600.0,117590.0,0.88158708]
[1758217418201,0.87804252,117600.0,117590.0,0.45914854]
[1758217420305,0.83235309,117600.0,117590.0,0.45914854]
[1758217420507,0.05127309,117600.0,117590.0,0.45914854]
[1758217420800,0.85491728,117600.0,117590.0,1.13158708]
[1758217421196,0.10443964,117600.0,117590.0,1.13158708]
[1758217421391,0.07387728,117600.0,117590.0,1.13158708]
[1758217423204,0.06491197,117600.0,117590.0,1.13158708]
[1758217423694,0.08894506,117600.0,117590.0,1.13158708]
[1758217424703,0.07390537,117600.0,117590.0,1.13158708]
[1758217430300,0.10446474,117600.0,117590.0,1.13158708]
[1758217431306,0.05859246,117600.0,117590.0,1.13158708]
[1758217431807,0.05659246,117600.0,117590.0,1.13158708]
[1758217432008,0.05659246,117600.0,117590.0,1.13258708]
[1758217433009,0.07643165,117600.0,117590.0,1.13258708]
[1758217433209,0.04555309,117600.0,117590.0,1.13258708]
[1758217433412,0.04555309,117600.0,117590.0,0.28771]
[1758217433606,0.04555309,117600.0,117590.0,1.13258708]
[1758217433903,0.04555309,117600.0,117590.0,1.91350708]
[1758217434697,0.04555309,117600.0,117590.0,1.13258708]
[1758217435009,0.04555309,117600.0,117590.0,1.91350708]
[1758217435710,0.04555309,117600.0,117590.0,1.13258708]
[1758217435913,0.04440982,117600.0,117590.0,1.6309818]
[1758217438915,0.04440982,117600.0,117590.0,0.8500618]
[1758217439214,0.58820572,117600.0,117590.0,0.02507]
[1758217439409,0.58820572,117600.0,117590.0,0.3201259]
[1758217439713,0.29440982,117600.0,117590.0,0.3201259]
[1758217439915,1.07528982,117600.0,117590.0,0.3201259]
[1758217441208,1.08789982,117600.0,117590.0,0.3201259]
[1758217442211,1.08789982,117600.0,117590.0,0.02507]
[1758217442407,1.08789982,117600.0,117590.0,0.3062459]
[1758217443009,1.36903572,117600.0,117590.0,0.3062459]
[1758217444124,1.08785982,117600.0,117590.0,0.3062459]
[1758217446130,0.30701982,117600.0,117590.0,0.3062459]
[1758217446332,1.08785982,117600.0,117590.0,0.3200259]
[1758217446832,0.30701982,117600.0,117590.0,0.3200259]
[1758217447029,1.07524982,117600.0,117590.0,0.3200259]
[1758217447235,1.07524982,117600.0,117590.0,0.03885]
[1758217447423,1.07524982,117600.0,117590.0,0.3200259]
[1758217447731,0.29440982,117600.0,117590.0,0.3200259]
[1758217448027,1.07520982,117600.0,117590.0,0.3200259]
[1758217450333,0.29440982,117600.0,117590.0,0.3200259]
[1758217450519,1.07520982,117600.0,117590.0,0.3200259]
[1758217450925,0.29440982,117600.0,117590.0,0.3200259]
[1758217451130,1.07520982,117600.0,117590.0,0.3200259]
[1758217452434,0.29440982,117600.0,117590.0,0.3200259]
[1758217452632,1.07516982,117600.0,117590.0,0.3200259]
[1758217453236,1.05228,117600.0,117590.0,0.3200259]
[1758217453935,1.0960659,117600.0,117590.0,0.3062459]
[1758217454130,1.64981307,117600.0,117590.0,0.002]
[1758217454936,1.36863717,117600.0,117590.0,0.002]
[1758217455135,1.36863717,117600.0,117590.0,0.02316]
[1758217456131,0.86905307,117600.0,117590.0,0.02316]
[1758217456328,1.36863717,117600.0,117590.0,0.02316]
[1758217458631,1.36863717,117600.0,117590.0,0.3043359]
[1758217459032,1.36859717,117600.0,117590.0,0.3043359]
[1758217459437,0.58787717,117600.0,117590.0,0.3043359]
[1758217459630,0.30670127,117600.0,117590.0,0.3043359]
[1758217459826,0.98702127,117600.0,117590.0,0.02316]
[1758217460030,1.26819717,117600.0,117590.0,0.02316]
[1758217460837,1.2456259,117600.0,117590.0,0.02316]
[1758217462237,1.3460259,117600.0,117590.0,0.02316]
[1758217462737,1.3460259,117600.0,117590.0,0.3043359]
[1758217463238,1.36858917,117600.0,117590.0,0.3043359]
[1758217463737,1.36858917,117600.0,117590.0,0.02316]
[1758217463939,1.36854917,117600.0,117590.0,0.3043359]
[1758217465740,1.37717308,117600.0,117590.0,0.3043359]
[1758217466040,1.36854917,117600.0,117590.0,0.3043359]
[1758217467037,1.37710826,117600.0,117590.0,0.3043359]
[1758217467540,1.37710826,117600.0,117590.0,0.02316]
[1758217468638,0.59642826,117600.0,117590.0,0.02316]
[1758217468843,1.36850917,117600.0,117590.0,0.02316]
[1758217470143,1.36850917,117600.0,117590.0,0.002]
[1758217470337,1.64968507,117600.0,117590.0,0.002]
[1758217470644,1.36850917,117600.0,117590.0,0.3061259]
[1758217471144,0.58786917,117600.0,117590.0,0.3061259]
[1758217471645,1.36846917,117600.0,117590.0,0.3061259]
[1758217472742,0.58786917,117600.0,117590.0,0.3061259]
[1758217472941,1.36842917,117600.0,117590.0,0.3061259]
[1758217473241,1.3458659,117600.0,117590.0,0.3061259]
[1758217475542,0.5653059,117600.0,117590.0,0.3061259]
[1758217475743,1.3458259,117600.0,117590.0,0.3061259]
[1758217477947,1.3458259,117600.0,117590.0,0.02495]
[1758217478245,1.3458259,117600.0,117590.0,0.3061259]
[1758217479346,1.0958259,117600.0,117590.0,0.3061259]
[1758217481747,1.11841138,117600.0,117590.0,0.002]
[1758217481949,1.39958728,117600.0,117590.0,0.002]
[1758217484441,0.61906728,117600.0,117590.0,0.002]
[1758217484642,1.39946728,117600.0,117590.0,0.002]
[1758217484947,1.11829138,117600.0,117590.0,0.002]
[1758217486346,1.39946728,117600.0,117590.0,0.002]
[1758217486542,1.64946728,117600.0,117590.0,0.002]
[1758217486943,0.03572,117590.0,117580.0,0.0002]
[1758217487247,0.03572,117580.0,117570.0,0.0002]
[1758217487442,1.3784318,117580.0,117560.0,0.2943659]
[1758217487653,0.3168959,117570.0,117560.0,0.3173159]
[1758217487949,0.3168959,117570.0,117560.0,0.3171159]
[1758217488342,0.3168959,117570.0,117560.0,0.32551301]
[1758217488543,0.3168959,117570.0,117560.0,0.32751301]
[1758217489143,0.03572,117570.0,117560.0,0.3061259]
[1758217489347,0.3168959,117570.0,117560.0,0.02495]
[1758217489544,0.3168959,117570.0,117560.0,0.3061259]
[1758217489741,0.03572,117570.0,117560.0,0.3061259]
[1758217490051,0.3168959,117570.0,117560.0,0.3061259]
[1758217490556,0.3168959,117570.0,117560.0,0.3071259]
[1758217490557,0.3178959,117570.0,117560.0,0.3071259]
[1758217491751,1.0215359,117570.0,117560.0,0.3071259]
[1758217492053,0.81704,117570.0,117560.0,0.3202059]
[1758217493248,0.02359,117570.0,117560.0,0.6013818]
[1758217493448,0.02359,117570.0,117560.0,0.03903]
[1758217493750,0.02359,117570.0,117560.0,0.3202059]
[1758217493952,0.02359,117570.0,117560.0,0.6013818]
[1758217495656,0.03743,117570.0,117560.0,0.6013818]
[1758217495949,0.02359,117570.0,117560.0,0.3202059]
[1758217496549,0.02359,117570.0,117560.0,0.6013818]
[1758217497855,0.02359,117570.0,117560.0,0.88303634]
[1758217501758,0.44559317,117570.0,117560.0,0.03903]
[1758217501957,0.44559317,117570.0,117560.0,0.88303634]
[1758217505160,0.44559317,117570.0,117560.0,0.03903]
[1758217505359,0.44559317,117570.0,117560.0,0.88303634]
[1758217505561,0.02359,117570.0,117560.0,0.88303634]
[1758217506354,0.44559317,117570.0,117560.0,0.88303634]
[1758217507261,0.02359,117570.0,117560.0,0.88303634]
[1758217507463,0.44559317,117570.0,117560.0,0.88303634]
[1758217508861,0.44559317,117570.0,117560.0,0.03903]
[1758217509057,0.44559317,117570.0,117560.0,0.88303634]
[1758217509462,0.02359,117570.0,117560.0,0.88303634]
[1758217509661,0.44559317,117570.0,117560.0,0.88303634]
[1758217510260,0.02359,117570.0,117560.0,0.88303634]
[1758217510658,0.44559317,117570.0,117560.0,0.88303634]
[1758217510866,0.02359,117570.0,117560.0,0.88303634]
[1758217524369,0.001,117570.0,117560.0,1.64005091]
[1758217524564,0.001,117570.0,117560.0,1.96005091]
[1758217524765,0.001,117570.0,117560.0,1.64005091]
[1758217524964,0.001,117570.0,117560.0,1.93005091]
[1758217525167,0.001,117570.0,117560.0,1.64005091]
[1758217525468,0.001,117570.0,117560.0,2.42017091]
[1758217525670,0.001,117570.0,117560.0,2.76017091]
[1758217526470,0.001,117570.0,117560.0,2.42017091]
[1758217526672,0.001,117570.0,117560.0,2.73017091]
[1758217526871,0.001,117570.0,117560.0,1.95005091]
[1758217527170,0.001,117570.0,117560.0,2.73017091]
[1758217528370,0.001,117570.0,117560.0,2.42017091]
[1758217528576,0.001,117570.0,117560.0,2.75017091]
[1758217528867,0.001,117570.0,117560.0,3.05661851]
[1758217532373,0.0001,117580.0,117570.0,0.1210742]
[1758217532675,0.0001,117590.0,117580.0,0.03607]
[1758217532876,0.41962,117600.0,117580.0,1.66007634]
[1758217533172,0.88529544,117600.0,117590.0,0.45807317]
[1758217533378,0.88519544,117600.0,117590.0,0.45807317]
[1758217533574,0.46319227,117600.0,117590.0,0.45807317]
[1758217533776,0.88519544,117600.0,117590.0,0.45807317]
[1758217534469,0.88719544,117600.0,117590.0,0.46656067]
[1758217535073,0.88619544,117600.0,117590.0,0.46656067]
[1758217535379,0.46519227,117600.0,117590.0,0.46756067]
[1758217535573,0.88719544,117600.0,117590.0,0.46756067]
[1758217535877,0.46519227,117600.0,117590.0,0.46756067]
[1758217536076,0.88719544,117600.0,117590.0,0.46756067]
[1758217536580,0.46519227,117600.0,117590.0,0.46756067]
[1758217536774,0.88719544,117600.0,117590.0,0.46756067]
[1758217536978,0.88619544,117600.0,117590.0,0.46756067]
[1758217537279,0.46419227,117600.0,117590.0,0.46756067]
[1758217537480,0.88619544,117600.0,117590.0,0.46756067]
[1758217538780,0.46667544,117600.0,117590.0,0.46756067]
[1758217538978,1.24659544,117600.0,117590.0,0.46756067]
[1758217539181,1.22399317,117600.0,117590.0,0.46756067]
[1758217539875,0.02207,117600.0,117590.0,0.46756067]
[1758217540175,0.02207,117600.0,117590.0,0.0455575]
[1758217540379,0.44407317,117600.0,117590.0,0.46756067]
[1758217541684,0.44407317,117600.0,117590.0,0.0455575]
[1758217541880,0.44407317,117600.0,117590.0,0.46756067]
[1758217543088,1.22391317,117600.0,117590.0,0.46756067]
[1758217543280,1.24641952,117600.0,117590.0,0.46756067]
[1758217544188,1.24641952,117600.0,117590.0,0.03707]
[1758217544375,1.25929952,117600.0,117590.0,0.03707]
[1758217544579,1.93130269,117600.0,117590.0,0.02409]
[1758217544777,1.93130269,117600.0,117590.0,0.001]